bitfinex-derivatives/quotes_SOLF0:USTF0_20241229
["timestamp","ask_amount","ask_price","bid_price","bid_amount"]
[1735466354622,10.75533575,196.83,196.79,2.5448]
[1735466355022,13.29973575,196.83,196.79,2.5448]
[1735466355523,2.82,196.86,196.78,7.93533575]
[1735466355719,7.93533575,196.85,196.78,7.93533575]
[1735466356415,7.93533575,196.85,196.82,2.5444]
[1735466356813,7.93533575,196.85,196.78,7.93533575]
[1735466357219,7.93533575,196.85,196.84,2.5442]
[1735466359119,2.82,196.86,196.84,2.5442]
[1735466359424,7.93533575,196.85,196.84,2.5442]
[1735466365430,7.93533575,196.87,196.84,2.5442]
[1735466365728,10.75533575,196.87,196.84,2.5442]
[1735466366128,7.93533575,196.87,196.84,2.5442]
[1735466366329,7.93533575,196.91,196.84,7.93533575]
[1735466367325,7.93533575,196.91,196.85,3.99445061]
[1735466367525,7.93533575,196.91,196.84,7.93533575]
[1735466367721,7.93533575,196.91,196.85,3.99460685]
[1735466367927,7.93533575,196.91,196.84,7.93533575]
[1735466368222,7.93533575,196.91,196.85,3.99456241]
[1735466368427,7.93533575,196.91,196.89,2.5435]
[1735466370031,13.29833575,196.93,196.89,2.5435]
[1735466370437,7.93533575,196.91,196.89,2.5435]
[1735466374836,7.93533575,196.91,196.87,2.5437]
[1735466375044,10.47863575,196.91,196.85,7.93533575]
[1735466375341,7.93533575,196.91,196.88,2.5436]
[1735466375933,2.82,196.93,196.88,2.5436]
[1735466376541,2.5434,196.91,196.88,2.5436]
[1735466383547,2.82,196.93,196.82,3.077]
[1735466383846,2.5432,196.92,196.89,2.5436]
[1735466384443,3.0205,196.97,196.83,3.98959512]
[1735466384642,2.82,196.96,196.84,3.98967845]
[1735466384846,2.82,196.96,196.85,3.98942861]
[1735466385044,2.82,196.96,196.82,3.077]
[1735466385249,2.543,196.94,196.9,2.5433]
[1735466392151,2.543,196.93,196.9,2.5433]
[1735466394255,2.82,196.96,196.83,3.98930961]
[1735466394554,2.5431,196.93,196.89,2.5434]
[1735466395150,2.5432,196.92,196.89,2.5434]
[1735466398350,2.82,196.96,196.83,6.94265429]
[1735466398654,2.82,196.96,196.84,8.3816467]
[1735466398853,1.5463,197.01,196.85,8.3816467]
[1735466399152,2.5424,196.98,196.94,2.5428]
[1735466399959,2.82,197.0,196.86,4.3284]
[1735466400252,2.5426,196.97,196.93,2.543]
[1735466400853,2.82,196.97,196.88,6.60512871]
[1735466401053,2.82,196.97,196.92,2.5431]
[1735466401457,2.82,196.97,196.93,4.97851118]
[1735466401656,2.5429,196.94,196.93,4.97851118]
[1735466402053,2.5431,196.93,196.89,2.5435]
[1735466402350,2.82,196.97,196.9,4.98073074]
[1735466402850,2.82,196.97,196.88,2.5436]
[1735466403457,2.5432,196.93,196.89,4.9811704]
[1735466403860,2.82,196.97,196.9,4.9811704]
[1735466404158,2.5431,196.93,196.88,2.5436]
[1735466404357,2.5431,196.93,196.89,12.95423277]
[1735466404860,2.5432,196.92,196.9,4.98239722]
[1735466405157,2.5432,196.92,196.88,2.5436]
[1735466405557,2.5432,196.92,196.89,12.95731674]
[1735466405959,2.5432,196.92,196.9,4.98358336]
[1735466406152,2.82,196.97,196.91,4.98358336]
[1735466406456,2.5432,196.92,196.91,2.58468336]
[1735466406660,2.82,196.92,196.84,27.77061718]
[1735466407658,2.82,196.92,196.79,6.94265429]
[1735466407857,2.82,196.92,196.8,15.23827993]
[1735466408058,2.82,196.91,196.81,15.23827993]
[1735466408258,2.82,196.9,196.82,8.61891676]
[1735466408458,2.82,196.89,196.83,4.13853023]
[1735466408656,2.5437,196.88,196.83,2.5442]
[1735466409161,2.5437,196.88,196.84,2.5442]
[1735466409556,5.3636,196.89,196.79,6.94265429]
[1735466409757,5.3636,196.89,196.8,15.24406835]
[1735466409961,5.3636,196.89,196.83,2.5443]
[1735466410257,5.3636,196.89,196.84,4.13887858]
[1735466410450,5.3636,196.89,196.82,2.5445]
[1735466410451,2.5437,196.88,196.82,2.5445]
[1735466410651,2.5437,196.88,196.83,8.62429145]
[1735466410865,2.5437,196.88,196.84,4.14004452]
[1735466411160,2.5437,196.88,196.83,2.5442]
[1735466411354,2.5437,196.88,196.84,4.13957535]
[1735466411555,2.5437,196.88,196.79,27.77061718]
[1735466411756,2.5437,196.88,196.8,15.24767679]
[1735466412055,2.5437,196.88,196.81,15.24767679]
[1735466412256,2.5437,196.88,196.82,15.24767679]
[1735466412452,2.5437,196.88,196.84,2.5442]
[1735466413874,2.5439,196.87,196.84,2.5442]
[1735466417159,2.5436,196.9,196.79,2.82]
[1735466417366,2.5436,196.9,196.8,15.23505418]
[1735466417663,2.5436,196.9,196.81,15.23505418]
[1735466417865,2.5436,196.9,196.82,16.82275418]
[1735466418059,2.5436,196.9,196.83,10.10956085]
[1735466418255,1.5463,197.01,196.84,4.1354815]
[1735466418461,2.5431,196.93,196.85,8.61438312]
[1735466418760,2.5431,196.93,196.89,2.5435]
[1735466419767,2.5431,196.93,196.9,2.5435]
[1735466420463,2.5428,196.96,196.92,2.5432]
[1735466420672,2.5428,196.96,196.84,4.4016]
[1735466420871,2.5428,196.96,196.85,20.03695081]
[1735466421066,2.5428,196.96,196.91,2.5433]
[1735466421868,2.5429,196.95,196.91,2.5433]
[1735466422270,2.82,196.97,196.92,2.5431]
[1735466423669,2.5428,196.96,196.92,2.5431]
[1735466423869,2.82,196.97,196.92,2.5431]
[1735466424369,1.5463,197.01,196.92,2.5431]
[1735466424569,2.82,196.97,196.92,2.5431]
[1735466425465,2.5428,196.96,196.92,2.5431]
[1735466428068,2.5429,196.95,196.92,2.5431]
[1735466428374,2.5429,196.95,196.91,2.5433]
[1735466430266,2.5431,196.94,196.9,2.5435]
[1735466431376,2.82,196.97,196.9,2.5435]
[1735466431571,2.5432,196.93,196.9,2.5435]
[1735466431966,2.82,196.97,196.84,1.5816]
[1735466431967,2.82,196.97,196.88,2.5437]
[1735466432171,2.5433,196.92,196.88,2.5437]
[1735466432772,2.5433,196.92,196.89,2.5436]
[1735466432969,2.5431,196.94,196.85,6.61724701]
[1735466433177,2.82,196.95,196.91,2.5433]
[1735466433676,5.3629,196.95,196.86,4.81094304]
[1735466433872,5.3629,196.95,196.92,2.5432]
[1735466434074,2.82,196.95,196.92,2.5432]
[1735466437375,2.5429,196.95,196.92,2.5432]
[1735466437575,2.82,196.97,196.9,2.5434]
[1735466437775,2.82,196.97,196.86,6.6136299]
[1735466437975,2.5429,196.95,196.87,13.42114534]
[1735466438176,2.5429,196.95,196.9,2.5435]
[1735466438679,2.5429,196.95,196.91,2.5433]
[1735466438874,2.82,196.97,196.85,6.6141312]
[1735466439072,2.5427,196.96,196.86,15.2247302]
[1735466439276,2.5427,196.96,196.87,20.03385125]
[1735466439481,2.5427,196.96,196.92,2.5432]
[1735466440680,2.82,196.97,196.92,2.5432]
[1735466440876,2.5429,196.95,196.92,2.5432]
[1735466442169,2.5428,196.96,196.93,2.5431]
[1735466442989,2.5425,196.98,196.94,2.543]
[1735466443281,2.82,197.0,196.87,4.47511179]
[1735466443475,2.82,197.0,196.88,16.73533871]
[1735466443678,2.82,197.0,196.89,22.8446124]
[1735466443878,2.82,197.0,196.9,14.90189143]
[1735466444075,2.82,197.0,196.91,10.10981754]
[1735466444279,2.82,197.0,196.91,6.31107369]
[1735466444477,2.5422,197.01,196.97,2.5425]
[1735466444684,37.20069131,197.04,196.91,1.5041]
[1735466444982,37.20069131,197.04,196.92,8.60315558]
[1735466445181,37.20069131,197.04,196.93,8.93513152]
[1735466445381,37.20069131,197.04,196.93,4.80509813]
[1735466445582,2.5419,197.03,196.99,2.5423]
[1735466445977,2.5419,197.03,196.91,1.5041]
[1735466445978,37.20069131,197.04,196.95,1.4561]
[1735466446176,2.5417,197.04,197.0,2.5422]
[1735466448984,2.5419,197.03,196.98,4.0163]
[1735466452383,2.542,197.02,196.98,4.0163]
[1735466453583,2.82,197.05,196.98,4.0163]
[1735466453889,2.5423,197.0,196.97,1.5266]
[1735466454190,2.82,197.05,196.97,1.5266]
[1735466454388,2.5424,196.99,196.97,1.5266]
[1735466455179,2.5425,196.98,196.95,1.4561]
[1735466455583,2.5425,196.98,196.94,2.543]
[1735466456378,2.5424,196.99,196.94,2.543]
[1735466459991,2.5424,196.99,196.95,2.5428]
[1735466460189,2.5426,196.97,196.93,1.5379]
[1735466460388,2.82,196.99,196.93,1.5379]
[1735466460587,2.82,196.99,196.89,2.5435]
[1735466460791,2.5434,196.92,196.86,55.54123438]
[1735466461594,2.5434,196.91,196.87,30.31451718]
[1735466461895,2.5434,196.91,196.87,27.77061718]
[1735466462289,2.5434,196.91,196.86,55.54123438]
[1735466462290,2.5434,196.91,196.85,1.4883]
[1735466462594,2.5434,196.91,196.86,2.5439]
[1735466462796,2.5432,196.93,196.85,1.4883]
[1735466463096,2.82,196.94,196.85,1.4883]
[1735466463296,2.82,196.94,196.86,4.80509792]
[1735466463591,2.82,196.94,196.9,2.5435]
[1735466466091,2.82,196.94,196.85,1.4883]
[1735466466289,2.82,196.94,196.88,2.5436]
[1735466466494,2.82,196.94,196.86,4.80476115]
[1735466466793,2.5433,196.92,196.86,7.34866115]
[1735466466993,2.5433,196.92,196.86,2.5439]
[1735466467194,2.82,196.94,196.86,2.5439]
[1735466467399,2.5434,196.91,196.86,2.5439]
[1735466468099,2.82,196.93,196.85,1.4883]
[1735466468694,2.82,196.93,196.86,4.80388576]
[1735466469097,2.82,196.93,196.89,2.5435]
[1735466469497,2.82,196.93,196.85,1.4883]
[1735466470497,2.5434,196.91,196.86,2.544]
[1735466470901,2.82,196.93,196.86,2.544]
[1735466471101,2.5434,196.91,196.86,2.544]
[1735466471502,2.5434,196.91,196.87,2.5439]
[1735466471795,2.82,196.93,196.87,2.5439]
[1735466471996,2.5433,196.92,196.85,1.4883]
[1735466472599,2.5433,196.92,196.87,2.5439]
[1735466475501,2.5438,196.89,196.83,31.22400566]
[1735466475698,2.82,196.93,196.83,2.5443]
[1735466476100,2.5439,196.87,196.83,2.5443]
[1735466476501,2.82,196.88,196.81,4.31654223]
[1735466476804,2.82,196.87,196.81,2.5446]
[1735466476999,2.82,196.86,196.81,2.5446]
[1735466477196,2.5442,196.85,196.81,2.5446]
[1735466478196,2.5443,196.84,196.79,1.5027]
[1735466478398,2.5443,196.84,196.75,4.47365846]
[1735466478604,2.82,196.86,196.76,8.93263289]
[1735466478903,2.5444,196.83,196.78,2.5449]
[1735466479304,2.5444,196.83,196.75,4.12871032]
[1735466479499,2.5444,196.83,196.74,4.4081]
[1735466479704,2.5444,196.83,196.75,8.92947244]
[1735466479903,2.5444,196.83,196.75,4.80216172]
[1735466480104,2.5444,196.83,196.76,4.80216172]
[1735466480502,2.5444,196.83,196.74,1.5881]
[1735466480897,2.5444,196.83,196.78,2.5449]
[1735466481307,2.5445,196.82,196.78,2.5449]
[1735466483098,2.5445,196.82,196.73,1.6084]
[1735466483099,2.5445,196.82,196.77,2.5452]
[1735466485409,2.82,196.86,196.73,1.6084]
[1735466485609,2.5448,196.81,196.76,2.5453]
[1735466485808,5.3648,196.81,196.76,2.5453]
[1735466488815,2.5448,196.8,196.76,2.5453]
[1735466489114,2.82,196.81,196.74,2.5455]
[1735466489311,2.545,196.79,196.73,1.6084]
[1735466489514,2.82,196.81,196.72,3.1]
[1735466490410,2.5452,196.78,196.73,2.5457]
[1735466491217,2.82,196.81,196.72,5.6457]
[1735466491218,2.5452,196.77,196.72,5.6457]
[1735466492314,2.5454,196.76,196.72,3.1]
[1735466493515,2.82,196.81,196.72,3.1]
[1735466493716,2.82,196.81,196.68,1.6052]
[1735466493916,0.82676613,196.8,196.68,1.6052]
[1735466494217,2.5457,196.73,196.69,2.5462]
[1735466497821,2.82,196.75,196.63,4.78481041]
[1735466498012,2.82,196.75,196.58,95.54123361]
[1735466498013,2.82,196.75,196.6,4.7246]
[1735466498319,0.82707805,196.74,196.6,4.7246]
[1735466498509,3.74077805,196.74,196.6,4.7246]
[1735466498714,0.82709565,196.73,196.6,4.7246]
[1735466499409,2.5465,196.67,196.62,2.5471]
[1735466499717,5.3665,196.67,196.62,2.5471]
[1735466500315,5.3665,196.67,196.55,2.82]
[1735466500618,2.5467,196.66,196.6,2.5473]
[1735466505123,2.5467,196.66,196.59,2.5475]
[1735466505311,2.5467,196.66,196.56,3.0571]
[1735466505912,2.5467,196.66,196.61,2.5472]
[1735466507823,2.82,196.67,196.61,2.5472]
[1735466508022,2.5468,196.65,196.61,2.5472]
[1735466508322,2.82,196.67,196.63,2.547]
[1735466508713,2.82,196.67,196.62,2.547]
[1735466509315,2.5465,196.68,196.56,3.0571]
[1735466509616,5.0889,196.84,196.57,9.22665926]
[1735466509822,6.57383919,196.83,196.58,19.89464711]
[1735466510023,0.82683919,196.82,196.69,2.5462]
[1735466510520,2.5456,196.74,196.69,2.5462]
[1735466510826,5.3656,196.74,196.69,2.5462]
[1735466511326,5.3654,196.75,196.7,2.5461]
[1735466514829,2.5456,196.74,196.7,2.5461]
[1735466515029,2.5456,196.74,196.65,3.0785]
[1735466515230,2.5456,196.74,196.69,2.5462]
[1735466518529,2.82,196.75,196.65,3.0785]
[1735466520536,2.927,196.83,196.65,3.0785]
[1735466520537,2.5462,196.7,196.65,3.0785]
[1735466520739,5.3662,196.7,196.65,3.0785]
[1735466521533,2.927,196.83,196.65,3.0785]
[1735466521734,3.64694944,196.82,196.65,3.0785]
[1735466521941,0.82694944,196.81,196.69,2.5461]
[1735466522142,0.82694944,196.81,196.65,3.0785]
[1735466522535,2.5457,196.74,196.69,2.5462]
[1735466522739,5.3657,196.74,196.69,2.5462]
[1735466523036,2.5457,196.73,196.69,2.5462]
[1735466523438,2.82,196.74,196.69,2.5462]
[1735466523635,5.3656,196.74,196.69,2.5462]
[1735466525241,2.5451,196.78,196.73,2.5457]
[1735466525439,2.82,196.81,196.68,2.82]
[1735466525639,2.82,196.8,196.69,4.12238745]
[1735466525839,2.5449,196.79,196.74,2.5455]
[1735466526344,2.82,196.8,196.71,1.5052]
[1735466526534,2.82,196.8,196.72,3.0347]
[1735466526742,2.5449,196.79,196.75,2.5454]
[1735466526943,2.5449,196.79,196.72,3.0347]
[1735466528543,2.5449,196.79,196.74,2.5456]
[1735466532141,2.82,196.8,196.72,3.0347]
[1735466532337,2.82,196.84,196.72,3.0347]
[1735466532740,2.5445,196.83,196.78,2.5449]
[1735466534546,1.00157987,196.91,196.73,16.20614894]
[1735466534746,2.82,196.9,196.74,15.18180291]
[1735466534945,2.82,196.9,196.75,19.97886715]
[1735466535143,2.82,196.9,196.76,8.58778263]
[1735466535342,2.82,196.9,196.76,4.79706424]
[1735466535546,2.82,196.9,196.77,4.11859291]
[1735466535750,2.82,196.9,196.78,6.95859291]
[1735466535947,1.00157987,196.91,196.79,4.79706424]
[1735466536147,3.84157987,196.91,196.79,6.36806424]
[1735466536347,3.84157987,196.91,196.8,3.119]
[1735466536552,6.38497987,196.91,196.8,3.119]
[1735466536945,58.2,197.06,196.8,3.119]
[1735466537153,3.67798541,197.04,196.88,2.5437]
[1735466537449,3.66598541,197.03,196.88,2.5437]
[1735466537751,3.85309555,197.04,196.88,2.5437]
[1735466537752,2.5431,196.94,196.88,2.5437]
[1735466539147,2.84,196.96,196.83,2.84]
[1735466539349,2.84,196.96,196.86,2.5439]
[1735466539753,2.5434,196.91,196.86,2.5439]
[1735466540453,2.5435,196.9,196.84,2.5442]
[1735466540648,2.5435,196.9,196.8,3.119]
[1735466540649,2.84,196.96,196.8,10.72449583]
[1735466540952,2.5434,196.91,196.82,2.5445]
[1735466541151,2.84,196.9,196.82,2.5445]
[1735466542556,2.5439,196.88,196.82,2.5445]
[1735466544456,2.5439,196.88,196.83,2.5443]
[1735466545255,2.84,196.9,196.83,2.5443]
[1735466545453,2.5439,196.87,196.83,2.5443]
[1735466546356,2.5439,196.87,196.82,2.5445]
[1735466551159,2.84,196.9,196.8,5.6637]
[1735466551160,2.544,196.86,196.8,5.6637]
[1735466551756,2.84,196.9,196.8,5.6637]
[1735466551952,2.84,196.9,196.8,3.119]
[1735466552154,2.5441,196.86,196.81,2.5446]
[1735466553951,2.5441,196.86,196.82,2.5445]
[1735466558962,2.5443,196.84,196.8,4.1343]
[1735466559864,2.5443,196.84,196.8,2.5447]
[1735466560058,2.5445,196.83,196.79,4.1159]
[1735466561660,2.5445,196.83,196.79,2.5449]
[1735466567071,2.5445,196.83,196.77,1.5888]
[1735466567271,2.5445,196.83,196.8,2.5448]
[1735466569468,2.84,196.85,196.77,1.5888]
[1735466569676,1.3795,196.94,196.78,2.82]
[1735466569875,3.64614609,196.93,196.78,7.61699173]
[1735466570076,2.5438,196.88,196.84,2.5442]
[1735466571472,2.5438,196.88,196.78,2.82]
[1735466571473,2.5439,196.87,196.82,2.5444]
[1735466571680,2.82,196.91,196.82,2.5444]
[1735466572177,2.82,196.91,196.81,2.5446]
[1735466572771,2.5441,196.86,196.81,2.5446]
[1735466573481,2.82,196.91,196.78,2.82]
[1735466573778,2.5439,196.87,196.82,2.5444]
[1735466575179,2.82,196.91,196.79,6.94265429]
[1735466575376,2.5438,196.88,196.84,2.5442]
[1735466578872,2.5441,196.86,196.79,6.94265429]
[1735466579080,2.5441,196.86,196.8,13.42528334]
[1735466579385,2.5441,196.86,196.81,8.94632214]
[1735466579678,2.5441,196.86,196.82,4.81116863]
[1735466580182,2.5441,196.86,196.81,2.5447]
[1735466580183,2.82,196.9,196.81,2.5447]
[1735466580579,2.82,196.9,196.79,2.5448]
[1735466580776,2.82,196.9,196.8,8.95130465]
[1735466580974,2.82,196.9,196.81,4.81388436]
[1735466581376,2.5445,196.83,196.78,2.545]
[1735466581583,2.5445,196.83,196.79,4.1379528]
[1735466581782,2.5445,196.83,196.8,4.81454301]
[1735466582082,2.5445,196.83,196.78,2.545]
[1735466582272,2.5445,196.83,196.79,4.13848327]
[1735466582475,2.5445,196.83,196.78,2.545]
[1735466582683,2.5445,196.83,196.79,4.13850618]
[1735466582875,2.5445,196.83,196.79,4.8151791]
[1735466583179,2.5445,196.83,196.8,4.8151791]
[1735466583371,2.5445,196.83,196.78,2.545]
[1735466583570,2.5445,196.83,196.79,8.62359636]
[1735466583772,2.5444,196.83,196.78,2.545]
[1735466583982,2.82,196.85,196.79,8.62359636]
[1735466584178,2.82,196.85,196.79,4.81653774]
[1735466584585,2.82,196.85,196.77,2.5452]
[1735466584975,2.82,196.85,196.78,4.81982235]
[1735466585175,2.82,196.85,196.77,2.5452]
[1735466585484,2.5447,196.81,196.77,2.5452]
[1735466585980,2.5447,196.81,196.78,4.82194145]
[1735466586284,2.5447,196.81,196.77,2.5452]
[1735466586980,2.5447,196.81,196.78,4.8210018]
[1735466587378,2.5447,196.81,196.77,2.5452]
[1735466589280,2.82,196.85,196.75,1.5657]
[1735466589486,2.82,196.85,196.76,2.5453]
[1735466589781,2.82,196.85,196.76,7.3645328]
[1735466589982,2.82,196.85,196.76,2.5453]
[1735466590985,2.5448,196.81,196.76,2.5453]
[1735466594184,2.82,196.85,196.76,2.5453]
[1735466594385,2.5448,196.8,196.76,2.5453]
[1735466595089,2.5447,196.81,196.76,2.5453]
[1735466595290,2.82,196.85,196.76,2.5453]
[1735466595892,2.82,196.85,196.75,1.5657]
[1735466596085,2.5449,196.8,196.75,4.1111]
[1735466596690,2.82,196.85,196.75,1.5657]
[1735466596989,2.5445,196.82,196.78,2.545]
[1735466603900,2.82,196.84,196.75,1.5657]
[1735466604097,2.82,196.86,196.76,8.94868665]
[1735466604296,6.4657,196.94,196.76,4.81258695]
[1735466604502,3.64637261,196.93,196.77,4.81258695]
[1735466604701,2.5442,196.85,196.8,2.5447]
[1735466606596,2.5443,196.84,196.8,2.5447]
[1735466613104,2.82,196.86,196.75,1.5657]
[1735466613296,5.3641,196.86,196.82,2.5445]
[1735466614601,2.5441,196.86,196.82,2.5445]
[1735466615407,2.5437,196.89,196.84,2.5442]
[1735466615609,2.82,196.93,196.79,2.82]
[1735466615814,2.82,196.93,196.8,16.81662947]
[1735466616106,2.82,196.93,196.81,15.22482947]
[1735466616309,2.5433,196.92,196.87,2.5438]
[1735466616509,2.82,196.93,196.87,2.5438]
[1735466617408,2.82,196.94,196.83,6.60442032]
[1735466617606,2.82,196.94,196.85,2.5441]
[1735466618411,2.5435,196.9,196.85,2.5441]
[1735466618909,2.82,196.94,196.83,2.5443]
[1735466619114,0.82612514,196.93,196.82,1.4988]
[1735466619409,2.82,196.94,196.82,1.4988]
[1735466619707,0.82612621,196.93,196.82,1.4988]
[1735466619906,2.82,196.94,196.82,1.4988]
[1735466620109,0.82616599,196.93,196.82,1.4988]
[1735466620309,0.82616599,196.93,196.82,4.0432]
[1735466620911,2.5437,196.89,196.84,2.5442]
[1735466621215,5.3637,196.89,196.84,2.5442]
[1735466625514,2.5437,196.89,196.84,2.5442]
[1735466625714,2.5434,196.91,196.86,2.544]
[1735466625905,5.3634,196.91,196.86,2.544]
[1735466629417,2.5434,196.91,196.86,2.544]
[1735466629813,1.00109555,197.04,196.85,2.82]
[1735466630019,0.82575204,197.03,196.86,19.98491831]
[1735466630320,0.82575204,197.03,196.87,15.18756171]
[1735466630616,0.82575204,197.03,196.88,8.59028145]
[1735466630820,0.82575204,197.03,196.89,8.58488803]
[1735466631123,1.00109555,197.04,196.9,7.6173566]
[1735466631317,2.5421,197.01,196.97,2.5426]
[1735466632523,2.82,197.0,196.89,1.5202]
[1735466633414,2.5427,196.96,196.91,2.5432]
[1735466633617,2.82,197.0,196.89,1.5202]
[1735466634520,2.5426,196.97,196.92,2.5432]
[1735466635922,2.82,197.0,196.89,1.5202]
[1735466636125,2.5424,196.99,196.94,2.5429]
[1735466637323,2.82,197.03,196.89,1.5202]
[1735466637523,27.53239055,197.04,196.92,2.82]
[1735466637825,3.54289555,197.04,196.92,2.82]
[1735466638728,3.54289555,197.04,196.95,2.5428]
[1735466638927,3.54289555,197.04,196.92,2.82]
[1735466639424,3.54289555,197.04,196.98,2.5423]
[1735466640323,2.5418,197.03,196.98,2.5423]
[1735466642319,2.5421,197.02,196.96,2.5426]
[1735466645332,1.00109555,197.04,196.96,2.5426]
[1735466645533,2.5421,197.01,196.96,2.5426]
[1735466648831,2.542,197.02,196.97,2.5426]
[1735466649238,1.00109555,197.04,196.9,2.82]
[1735466649430,1.00109555,197.04,196.99,2.5423]
[1735466650637,2.5418,197.03,196.99,2.5423]
[1735466651133,3.82109555,197.04,196.91,4.76533998]
[1735466651335,2.542,197.02,196.97,2.5425]
[1735466653440,2.542,197.02,196.9,2.82]
[1735466653636,2.542,197.02,196.97,2.5425]
[1735466654441,2.542,197.02,196.9,2.82]
[1735466654642,2.542,197.02,196.97,2.5425]
[1735466656442,2.542,197.02,196.98,2.5425]
[1735466656939,1.00109555,197.04,196.98,2.5425]
[1735466656940,2.5421,197.01,196.98,2.5425]
[1735466657736,2.5421,197.01,196.93,2.84]
[1735466657941,2.5421,197.01,196.97,2.5426]
[1735466659542,2.5419,197.01,196.96,2.5424]
[1735466659741,2.82,197.05,196.9,7.28997353]
[1735466660044,2.82,197.05,196.91,4.78061826]
[1735466660240,2.542,197.01,196.95,2.5426]
[1735466660440,2.82,197.05,196.92,4.78061826]
[1735466660837,2.82,197.05,196.9,2.84]
[1735466661039,2.82,197.05,196.91,8.89297058]
[1735466661240,2.82,197.05,196.91,4.78245928]
[1735466661646,2.82,197.05,196.92,4.78245928]
[1735466661945,2.5422,196.99,196.95,2.5426]
[1735466666142,2.5425,196.97,196.89,1.5202]
[1735466666646,2.5425,196.97,196.92,2.543]
[1735466668351,2.84,197.0,196.92,2.543]
[1735466668546,2.84,197.0,196.89,1.5202]
[1735466668749,2.84,197.0,196.91,2.5432]
[1735466669455,2.5426,196.96,196.91,2.5432]
[1735466672462,2.5425,196.97,196.89,1.5202]
[1735466672855,2.84,197.0,196.89,1.5202]
[1735466673050,2.84,197.0,196.9,4.80235346]
[1735466673255,1.4554,196.99,196.9,4.80235346]
[1735466673559,2.5432,196.92,196.87,4.08234967]
[1735466673759,2.5432,196.92,196.88,4.80521336]
[1735466673958,2.5432,196.92,196.89,4.80521336]
[1735466674160,2.84,196.93,196.89,4.80521336]
[1735466674357,2.5433,196.9,196.85,2.5439]
[1735466674558,2.5433,196.9,196.86,8.60777391]
[1735466674760,2.5433,196.9,196.86,4.80776953]
[1735466674961,2.5433,196.9,196.87,4.80776953]
[1735466675458,2.5433,196.9,196.83,47.19198263]
[1735466675660,2.5433,196.9,196.86,2.5438]
[1735466676559,2.5433,196.9,196.87,4.80647524]
[1735466676758,2.5433,196.9,196.86,2.5438]
[1735466677854,2.5436,196.89,196.84,2.5441]
[1735466678058,2.5436,196.89,196.85,8.933566]
[1735466678258,2.5436,196.89,196.85,4.80432039]
[1735466678556,2.5436,196.89,196.86,4.80444127]
[1735466679256,2.5436,196.89,196.84,2.5441]
[1735466679863,2.5436,196.89,196.85,4.80248291]
[1735466680057,2.5436,196.89,196.84,2.5441]
[1735466680660,2.5436,196.89,196.85,4.80159152]
[1735466680861,2.5437,196.88,196.85,4.80159152]
[1735466681062,2.5437,196.88,196.84,2.5441]
[1735466681361,2.84,196.93,196.83,3.0056]
[1735466682264,2.5439,196.86,196.83,3.0056]
[1735466682764,2.5439,196.86,196.82,2.5444]
[1735466682964,2.84,196.88,196.82,2.5444]
[1735466683160,2.5438,196.87,196.82,2.5444]
[1735466684458,2.84,196.88,196.82,2.5444]
[1735466684661,2.5439,196.86,196.82,2.5444]
[1735466685067,2.5439,196.86,196.79,4.46565788]
[1735466685265,2.5439,196.86,196.81,2.5445]
[1735466689669,2.5439,196.86,196.77,3.0066]
[1735466689670,2.5438,196.87,196.83,2.5443]
[1735466691969,2.5438,196.87,196.83,10.48624112]
[1735466692570,2.5438,196.87,196.83,2.5443]
[1735466692771,2.5438,196.87,196.83,10.48624112]
[1735466693563,2.5438,196.87,196.83,7.94194112]